bitfinex/quotes_SOLUSD_20220101
["timestamp","ask_amount","ask_price","bid_price","bid_amount"]
[1641079246300,9.9737,177.83,177.74,18.2681]
[1641079256711,9.9737,177.83,177.74,9.5705]
[1641079256916,10.4737,177.83,177.69,36.4563]
[1641079257117,10.4737,177.83,177.71,1.2888]
[1641079258113,10.4737,177.83,177.71,1.5488]
[1641079258617,10.4737,177.83,177.71,9.988]
[1641079260320,12.07107098,177.83,177.71,9.988]
[1641079260719,12.07107098,177.83,177.71,9.728]
[1641079260920,8.33,177.82,177.69,8.4397]
[1641079261120,10.01669368,177.82,177.67,8.5961]
[1641079261320,15.9071952,177.74,177.67,8.5961]
[1641079261519,16.1671952,177.74,177.67,8.5961]
[1641079261723,16.6671952,177.74,177.61,8.33]
[1641079261919,16.6671952,177.74,177.62,16.6791]
[1641079262120,16.6671952,177.74,177.61,8.33]
[1641079262321,1.229,177.73,177.61,16.638]
[1641079262522,8.4439,177.68,177.61,16.638]
[1641079262722,8.4439,177.68,177.61,8.33]
[1641079262922,4.90195191,177.67,177.56,8.33]
[1641079263225,5.16195191,177.67,177.56,8.33]
[1641079263421,5.66195191,177.67,177.56,8.33]
[1641079264024,8.4449,177.66,177.56,16.776]
[1641079264422,8.7049,177.66,177.56,16.776]
[1641079265523,8.7049,177.66,177.56,17.036]
[1641079266124,0.26,177.66,177.56,17.036]
[1641079266527,0.26,177.67,177.56,17.036]
[1641079266926,1.5163,177.7,177.56,17.036]
[1641079267129,1.5163,177.7,177.63,8.4428]
[1641079267429,0.26,177.7,177.63,8.4428]
[1641079267829,82.4121,177.71,177.63,8.4428]
[1641079268031,0.04,177.66,177.63,8.7028]
[1641079268231,0.04,177.66,177.65,8.4413]
[1641079268728,79.06831312,177.77,177.65,8.7013]
[1641079269130,79.06831312,177.77,177.65,9.9435]
[1641079269331,79.32831312,177.77,177.65,9.9435]
[1641079269733,8.441,177.75,177.65,9.9435]
[1641079271636,8.701,177.75,177.65,9.9435]
[1641079274858,9.201,177.75,177.65,9.9435]
[1641079276062,0.5,177.75,177.65,9.9435]
[1641079276260,88.00841312,177.77,177.71,8.4396]
[1641079276459,1.7629,177.77,177.71,8.4396]
[1641079276861,1.7629,177.77,177.66,36.462]
[1641079277061,1.7629,177.77,177.66,36.722]
[1641079277261,10.2029,177.77,177.66,36.722]
[1641079277460,10.4629,177.77,177.66,36.722]
[1641079277661,10.4629,177.77,177.66,36.462]
[1641079277861,10.4629,177.77,177.66,8.33]
[1641079278962,10.4629,177.77,177.68,8.4407]
[1641079280967,9.9629,177.77,177.68,8.4407]
[1641079282370,10.4629,177.77,177.68,8.4407]
[1641079284074,10.4629,177.77,177.61,36.4707]
[1641079284275,10.4629,177.77,177.62,1.2872]
[1641079284476,9.75669368,177.76,177.59,8.33]
[1641079284674,13.11898017,177.68,177.59,8.33]
[1641079284875,13.11898017,177.68,177.58,2.5538]
[1641079285080,13.37898017,177.68,177.58,2.5538]
[1641079285476,13.37898017,177.68,177.6,8.4449]
[1641079285676,13.37898017,177.68,177.56,36.4788]
[1641079285677,13.87898017,177.68,177.56,36.4788]
[1641079286479,13.37898017,177.68,177.56,36.4788]
[1641079286677,13.87898017,177.68,177.59,8.4453]
[1641079288279,13.87898017,177.68,177.58,8.4458]
[1641079288481,13.87898017,177.68,177.54,8.33]
[1641079288880,15.30567385,177.68,177.54,8.33]
[1641079289283,15.30567385,177.68,177.51,1.2116]
[1641079289284,1.2554,177.67,177.51,1.2116]
[1641079289481,8.4473,177.61,177.51,9.5416]
[1641079289681,16.13446694,177.6,177.51,9.5416]
[1641079290085,16.39446694,177.6,177.51,9.5416]
[1641079290285,16.39446694,177.6,177.51,8.33]
[1641079290485,24.84266694,177.6,177.51,16.7787]
[1641079291516,8.7082,177.6,177.51,16.7787]
[1641079291716,0.26,177.6,177.51,16.7787]
[1641079291923,0.26,177.6,177.52,1.42669368]
[1641079292113,78.9001,177.65,177.53,8.33]
[1641079292512,96.26217782,177.65,177.53,8.59]
[1641079292714,96.76217782,177.65,177.53,8.59]
[1641079292915,105.20817782,177.65,177.5,28.1566]
[1641079293214,105.20817782,177.65,177.5,29.4012]
[1641079293615,1.2278,177.64,177.5,29.4012]
[1641079293817,1.2278,177.64,177.54,8.4472]
[1641079294015,1.9878,177.64,177.54,8.4472]
[1641079294716,8.4477,177.62,177.54,8.4472]
[1641079295015,8.7077,177.62,177.54,8.4472]
[1641079295815,9.2077,177.62,177.49,1.42669368]
[1641079296015,9.2077,177.62,177.48,87.6271]
[1641079296817,8.4496,177.58,177.49,8.4496]
[1641079297015,8.7096,177.58,177.49,8.4496]
[1641079298218,8.4489,177.6,177.49,8.4496]
[1641079299523,8.7089,177.6,177.49,8.4496]
[1641079302025,9.2089,177.6,177.49,8.4496]
[1641079305929,9.2089,177.6,177.48,87.6271]
[1641079306128,9.2089,177.6,177.48,96.0775]
[1641079306331,9.2089,177.6,177.48,87.7475]
[1641079308633,3.44706929,177.58,177.48,87.7475]
[1641079308933,8.4504,177.56,177.48,87.7475]
[1641079309132,8.4504,177.56,177.48,8.4504]
[1641079309334,9.2104,177.56,177.48,8.4504]
[1641079312039,8.7104,177.56,177.48,8.4504]
[1641079312439,8.4497,177.58,177.48,16.7804]
[1641079312640,77.3889,177.62,177.48,17.0404]
[1641079313340,18.71476095,177.61,177.48,17.0404]
[1641079313541,27.16316095,177.61,177.52,8.4484]
[1641079313741,27.66316095,177.61,177.52,8.4484]
[1641079313942,27.92316095,177.61,177.52,8.4484]
[1641079314745,27.16316095,177.61,177.52,8.4484]
[1641079315347,8.4484,177.61,177.52,8.4484]
[1641079316143,8.7084,177.61,177.52,8.4484]
[1641079317350,9.2084,177.61,177.52,8.4484]
[1641079317972,8.4484,177.61,177.52,8.4484]
[1641079318169,8.4471,177.62,177.52,8.4484]
[1641079318373,78.6401,177.65,177.52,8.4484]
[1641079318767,80.23747098,177.65,177.52,8.4484]
[1641079318968,96.68171238,177.65,177.52,8.4484]
[1641079319170,96.68171238,177.65,177.52,8.7084]
[1641079319372,95.0843414,177.65,177.52,17.0384]
[1641079319770,8.4465,177.64,177.52,17.0384]
[1641079320471,8.7065,177.64,177.52,16.7784]
[1641079320874,9.2065,177.64,177.52,16.7784]
[1641079321173,10.4548,177.64,177.52,16.7784]
[1641079321373,10.4548,177.64,177.52,8.4484]
[1641079322479,10.4548,177.64,177.48,116.1642]
[1641079322679,8.33,177.63,177.49,1.2851]
[1641079322876,8.4491,177.58,177.49,1.2851]
[1641079323076,13.07400571,177.58,177.49,1.2851]
[1641079323677,13.07400571,177.58,177.51,8.4491]
[1641079327081,13.07400571,177.58,177.49,8.4497]
[1641079327284,13.57400571,177.58,177.44,9.6294]
[1641079328085,8.4517,177.52,177.44,18.0814]
[1641079328581,8.7117,177.52,177.44,18.0814]
[1641079328782,16.4442414,177.51,177.44,18.0814]
[1641079328984,16.7042414,177.51,177.44,16.782]
[1641079329283,25.1567414,177.51,177.44,16.782]
[1641079330289,25.1567414,177.51,177.44,8.452]
[1641079330588,25.6567414,177.51,177.44,8.452]
[1641079331586,25.1567414,177.51,177.44,8.452]
[1641079331786,25.6567414,177.51,177.43,8.453]
[1641079331987,25.1567414,177.51,177.43,8.453]
[1641079335795,24.8967414,177.51,177.43,8.453]
[1641079335997,16.4442414,177.51,177.43,8.453]
[1641079336822,1.2307,177.54,177.43,8.453]
[1641079337025,78.2737,177.56,177.43,8.453]
[1641079337222,8.4513,177.54,177.43,8.453]
[1641079337721,14.82976807,177.53,177.43,9.6645]
[1641079338124,15.08976807,177.53,177.43,9.6645]
[1641079339626,23.54126807,177.53,177.43,9.6645]
[1641079345634,23.54126807,177.53,177.43,8.453]
[1641079345837,33.79796175,177.53,177.33,8.33]
[1641079346035,33.79796175,177.53,177.33,9.5451]
[1641079346637,8.4552,177.45,177.33,9.5451]
[1641079347033,8.7152,177.45,177.33,10.97179368]
[1641079348734,8.7152,177.45,177.39,8.4547]
[1641079351038,0.26,177.45,177.39,8.4547]
[1641079351537,8.7144,177.46,177.39,8.4547]
[1641079358150,14.69377904,177.46,177.35,1.223]
[1641079358349,14.69377904,177.46,177.35,1.483]
[1641079359250,14.69377904,177.46,177.37,8.4557]
[1641079359448,15.19377904,177.46,177.37,8.4557]
[1641079360355,14.43377904,177.46,177.35,1.483]
[1641079360550,14.43377904,177.46,177.35,1.223]
[1641079360752,14.93377904,177.46,177.32,82.3404]
[1641079361360,14.93377904,177.46,177.34,8.4571]
[1641079361553,1.205,177.45,177.34,8.4571]
[1641079361953,72.9705,177.48,177.34,8.4571]
[1641079362154,72.9705,177.48,177.35,9.75669368]
[1641079362575,72.9705,177.48,177.41,7.9538]
[1641079362974,81.4239,177.48,177.41,7.9538]
[1641079363279,81.4239,177.48,177.36,1.241]
[1641079363474,81.6839,177.48,177.36,1.241]
[1641079363874,82.1839,177.48,177.36,1.241]
[1641079364075,82.1839,177.48,177.4,8.4543]
[1641079364875,8.7134,177.48,177.4,8.4543]
[1641079365278,0.26,177.48,177.4,8.4543]
[1641079365478,8.7131,177.49,177.4,8.4543]
[1641079367780,8.7131,177.49,177.39,8.4547]
[1641079367983,9.2131,177.49,177.39,8.4547]
[1641079368179,8.7131,177.49,177.39,8.4547]
[1641079368982,9.2131,177.49,177.39,8.4547]
[1641079370083,8.7131,177.49,177.39,8.4547]
[1641079370482,9.2131,177.49,177.39,8.4547]
[1641079373583,9.2131,177.49,177.39,7.9547]
[1641079375387,8.7131,177.49,177.39,7.9547]
[1641079376289,0.26,177.49,177.39,7.9547]
[1641079376589,9.9714,177.5,177.39,7.9547]
[1641079377092,9.9714,177.5,177.39,9.1615]
[1641079377291,8.7126,177.5,177.39,9.4215]
[1641079377988,0.26,177.5,177.39,9.4215]
[1641079378490,75.9681,177.51,177.39,9.4215]
[1641079378888,84.4203,177.51,177.39,9.4215]
[1641079379694,85.685,177.51,177.39,9.4215]
[1641079382895,84.4203,177.51,177.39,9.4215]
[1641079385192,1.3112,177.5,177.39,9.4215]
[1641079385593,10.0238,177.5,177.39,9.4215]
[1641079387493,10.0238,177.5,177.39,9.1615]
[1641079387695,10.0238,177.5,177.39,7.9547]
[1641079387895,10.5238,177.5,177.39,7.9547]
[1641079389196,10.5238,177.5,177.39,9.2185]
[1641079389496,8.452,177.52,177.39,9.4785]
[1641079389695,1.59737098,177.54,177.4,9.75669368]
[1641079389900,1.59737098,177.54,177.47,8.451]
[1641079390396,75.7346,177.55,177.47,8.451]
[1641079390596,8.4516,177.52,177.42,28.1699]
[1641079390795,8.4516,177.52,177.42,28.4299]
[1641079390997,8.4516,177.52,177.45,8.4516]
[1641079392499,0.26,177.52,177.45,8.4516]
[1641079392899,9.9621,177.53,177.45,8.4516]
[1641079399240,10.4621,177.53,177.43,8.4525]
[1641079403750,10.4621,177.53,177.42,8.4534]
[1641079407456,10.4621,177.53,177.41,8.4539]
[1641079411387,12.05947098,177.53,177.41,8.4539]
[1641079413394,12.05947098,177.53,177.4,8.4545]
[1641079413395,29.77837098,177.52,177.4,8.4545]
[1641079413594,30.03837098,177.52,177.4,8.4545]
[1641079413892,30.53837098,177.52,177.4,8.4545]
[1641079414795,8.4545,177.47,177.4,8.4545]
[1641079414992,8.7145,177.47,177.4,8.4545]
[1641079415192,9.2145,177.47,177.4,8.4545]
[1641079415392,8.7145,177.47,177.4,8.4545]
[1641079417395,0.26,177.47,177.4,8.4545]
[1641079417594,0.26,177.49,177.4,8.4545]
[1641079417795,0.76,177.49,177.4,8.4545]
[1641079417996,0.5,177.49,177.4,8.4545]
[1641079418394,76.6158,177.51,177.4,8.4545]
[1641079419696,8.4543,177.47,177.4,8.4545]
[1641079420098,8.7143,177.47,177.4,8.4545]
[1641079423401,0.26,177.47,177.4,8.4545]
[1641079423602,8.7139,177.48,177.4,8.4545]
[1641079423807,9.2139,177.48,177.4,8.4545]
[1641079425806,5.51759681,177.47,177.4,8.4545]
[1641079426006,5.77759681,177.47,177.4,8.4545]
[1641079427107,6.27759681,177.47,177.4,8.4545]
[1641079427309,5.77759681,177.47,177.4,8.4545]
[1641079430413,14.73199681,177.47,177.39,8.455]
[1641079430614,14.73199681,177.47,177.34,2.606]
[1641079430815,1.3226,177.46,177.34,2.606]
[1641079431015,1.5826,177.46,177.34,2.606]
[1641079431215,2.0826,177.46,177.34,2.606]
[1641079432516,8.4578,177.4,177.34,2.606]
[1641079432716,8.4578,177.4,177.34,1.2837]
[1641079432917,24.0093503,177.4,177.34,1.2837]
[1641079433316,8.7178,177.4,177.34,1.2837]
[1641079440039,8.7178,177.4,177.34,0.7837]
[1641079440242,8.7178,177.4,177.33,8.4578]
[1641079440442,8.7178,177.4,177.32,82.4686]
[1641079440940,8.7178,177.4,177.32,8.4582]
[1641079443243,8.4578,177.4,177.32,8.4582]
[1641079443447,18.00595703,177.44,177.32,17.0482]
[1641079443746,18.00595703,177.44,177.32,18.47489368]
[1641079444348,18.00595703,177.44,177.33,1.2605]
[1641079444547,26.46185703,177.44,177.38,8.4555]
[1641079446552,26.72185703,177.44,177.38,8.4555]
[1641079447153,8.7159,177.44,177.38,8.4555]
[1641079447755,0.26,177.44,177.38,8.4555]
[1641079448155,8.4553,177.45,177.38,8.4555]
[1641079448354,8.7153,177.45,177.38,8.4555]
[1641079448556,0.26,177.45,177.38,8.4555]
[1641079448959,0.26,177.47,177.38,8.4555]
[1641079449157,1.59737098,177.48,177.38,8.4555]
[1641079449362,388.84767275,177.49,177.38,9.6888]
[1641079449561,388.84767275,177.49,177.39,8.33]
[1641079449957,388.84767275,177.49,177.44,8.4523]
[1641079450157,387.25030177,177.49,177.44,8.4523]
[1641079450559,387.51030177,177.49,177.44,8.4523]
[1641079451559,0.26,177.49,177.44,8.4523]
[1641079451961,8.7126,177.51,177.44,8.4523]
[1641079452162,0.26,177.51,177.44,8.4523]
[1641079452585,1.85737098,177.52,177.44,8.4523]
[1641079453160,0.26,177.52,177.44,8.4523]
[1641079453560,1.85737098,177.54,177.44,8.4523]
[1641079453961,1.85737098,177.54,177.44,9.6589]
[1641079454563,0.26,177.54,177.44,9.6589]
[1641079454969,10.30827098,177.55,177.44,9.6589]
[1641079455164,1.59737098,177.54,177.44,9.6589]
[1641079455663,1.85737098,177.54,177.44,9.6589]
[1641079457072,0.26,177.54,177.44,9.6589]
[1641079457270,10.30827098,177.55,177.44,9.6589]
[1641079457471,1.85737098,177.55,177.44,9.6589]
[1641079458674,0.26,177.55,177.44,9.6589]
[1641079459076,0.76,177.56,177.44,9.6589]
[1641079459478,19.92884464,177.57,177.44,9.6589]
[1641079459877,1.59737098,177.55,177.44,9.6589]
[1641079460093,1.85737098,177.55,177.44,9.6589]
[1641079460300,2.35737098,177.55,177.44,9.6589]
[1641079460698,8.452,177.53,177.44,9.6589]
[1641079461099,8.712,177.53,177.44,9.6589]
[1641079461901,9.212,177.53,177.44,9.6589]
[1641079463698,9.212,177.53,177.43,8.453]
[1641079464500,8.4529,177.51,177.43,8.453]
[1641079464907,8.7129,177.51,177.43,8.453]
[1641079465100,3.23767345,177.5,177.43,8.453]
[1641079465502,3.49767345,177.5,177.43,8.453]
[1641079467104,11.95087345,177.5,177.43,8.453]
[1641079467904,11.95087345,177.5,177.41,9.691]
[1641079469807,12.45087345,177.5,177.41,1.2374]
[1641079470009,12.45087345,177.5,177.4,8.4544]
[1641079471207,8.4545,177.47,177.4,8.4544]
[1641079471608,8.7145,177.47,177.4,8.4544]
[1641079472210,8.7145,177.47,177.39,9.7812]
[1641079472710,8.7145,177.47,177.39,8.4548]
[1641079472909,9.2145,177.47,177.39,8.4548]
[1641079473208,8.7145,177.47,177.39,8.4548]
[1641079474411,0.26,177.47,177.39,8.4548]
[1641079474611,1.5838,177.49,177.39,8.4548]
[1641079475414,2.0838,177.49,177.39,8.4548]
[1641079476715,8.4551,177.46,177.38,1.2362]
[1641079477114,8.7151,177.46,177.38,1.2362]
[1641079477617,8.7151,177.46,177.38,9.6915]
[1641079482047,2.92117098,177.49,177.38,9.6915]
[1641079482246,1.59737098,177.49,177.38,11.37819368]
[1641079482447,1.59737098,177.49,177.44,8.4525]
[1641079482648,1.59737098,177.5,177.44,8.4525]
[1641079483250,1.59737098,177.52,177.44,8.4525]
[1641079483650,10.30997098,177.52,177.44,8.4525]
[1641079484550,0.26,177.52,177.44,8.4525]
[1641079484948,81.14547098,177.53,177.44,8.4525]
[1641079485151,79.5481,177.53,177.44,8.4525]
[1641079485850,79.5481,177.53,177.44,9.7853]
[1641079487048,79.2881,177.53,177.44,9.7853]
[1641079488154,79.5481,177.53,177.44,9.7853]
[1641079488655,79.5481,177.53,177.44,10.0453]
[1641079490054,0.26,177.53,177.44,10.0453]
[1641079490563,11.60027098,177.55,177.44,9.7853]
[1641079490754,10.5029,177.55,177.44,9.7853]
[1641079490955,10.5029,177.55,177.44,8.4525]
[1641079491155,1.59737098,177.53,177.44,8.4525]
[1641079491354,2.09737098,177.53,177.44,8.4525]
[1641079491654,2.35737098,177.53,177.44,8.4525]
[1641079491853,1.85737098,177.53,177.44,8.4525]
[1641079492857,0.26,177.53,177.44,8.4525]
[1641079493055,3.14907098,177.55,177.44,8.4525]
[1641079493455,2.88907098,177.55,177.44,8.4525]
[1641079493655,1.59737098,177.55,177.45,8.33]
[1641079493856,1.59737098,177.55,177.5,8.4491]
[1641079494468,74.55747098,177.57,177.5,8.4491]
[1641079494659,1.59737098,177.57,177.5,8.4491]
[1641079495060,439.45588512,177.59,177.5,8.4491]
[1641079496560,437.85851414,177.59,177.5,8.4491]
[1641079496961,438.11851414,177.59,177.5,8.4491]
[1641079497965,429.66921414,177.59,177.5,8.4491]
[1641079498363,429.40921414,177.59,177.5,16.7791]
[1641079498663,429.40921414,177.59,177.5,24.4521]
[1641079498862,429.40921414,177.59,177.5,25.87879368]
[1641079499468,92.9,177.63,177.5,25.87879368]
[1641079499969,92.9,177.63,177.5,130.00879368]
[1641079500369,1.59737098,177.69,177.5,130.00879368]
[1641079500577,1.59737098,177.69,177.6,8.4417]
[1641079500770,1.59737098,177.69,177.6,16.7717]
[1641079500973,1.59737098,177.69,177.6,17.0317]
[1641079501169,1.59737098,177.72,177.6,17.0317]
[1641079501378,1.59737098,177.72,177.61,1.42669368]
[1641079501572,1.59737098,177.72,177.67,8.4403]
[1641079502371,1.59737098,177.72,177.68,8.33]
[1641079502569,1.59737098,177.76,177.71,8.4389]
[1641079502770,1.59737098,177.76,177.63,8.33]
[1641079502975,6.30336207,177.76,177.63,8.33]
[1641079503172,4.70599109,177.76,177.63,8.33]
[1641079503571,1.2181,177.75,177.63,8.33]
[1641079503772,1.4781,177.75,177.63,16.7725]
[1641079503971,0.26,177.75,177.63,17.0325]
[1641079504172,0.26,177.75,177.63,18.45919368]
[1641079504373,1.59737098,177.74,177.63,18.45919368]
[1641079504573,17.64360801,177.74,177.63,16.7725]
[1641079505699,16.04623703,177.74,177.63,16.7725]
[1641079505902,0.26,177.74,177.63,16.7725]
[1641079506100,1.85737098,177.75,177.63,18.19919368]
[1641079507299,1.85737098,177.75,177.63,16.7725]
[1641079509605,0.26,177.75,177.63,16.7725]
[1641079509806,89.29297098,177.76,177.63,17.9817]
[1641079510811,80.85147098,177.76,177.63,18.2417]
[1641079511009,80.85147098,177.76,177.64,1.42669368]
[1641079511311,1.85737098,177.76,177.64,37.89049368]
[1641079511506,1.85737098,177.76,177.64,38.15049368]
[1641079511707,0.26,177.76,177.65,1.42669368]
[1641079512007,1.93373598,177.77,177.66,8.33]
[1641079512206,1.59737098,177.78,177.7,8.4395]
[1641079513209,1.59737098,177.78,177.71,0.44978008]
[1641079513609,1.59737098,177.77,177.71,0.44978008]
[1641079514508,1.85737098,177.77,177.71,0.44978008]
[1641079516712,1.85737098,177.77,177.67,1.2964]
[1641079516912,1.85737098,177.77,177.68,8.4402]
[1641079517113,2.35737098,177.77,177.67,1.2964]
[1641079517512,2.35737098,177.77,177.62,8.33]
[1641079517712,1.71095458,177.76,177.63,12.47353853]
[1641079517914,11.39595458,177.76,177.66,8.4412]
[1641079518115,11.65595458,177.76,177.67,5.30594934]
[1641079518315,11.54237098,177.76,177.67,5.30594934]
[1641079519715,11.54237098,177.76,177.67,13.74674934]
[1641079519915,3.10057098,177.76,177.67,13.74674934]
[1641079520114,1.59737098,177.76,177.68,8.33]
[1641079520613,1.59737098,177.78,177.68,10.01669368]
[1641079521115,1.59737098,177.78,177.72,8.4377]
[1641079521314,510.8774194,177.79,177.72,8.4377]
[1641079521516,0.26,177.79,177.72,8.4377]
[1641079521916,1.59737098,177.79,177.72,8.4377]
[1641079522116,1.85737098,177.79,177.72,8.4377]
[1641079522516,0.26,177.79,177.72,8.4377]
[1641079522917,1.85737098,177.8,177.72,8.4377]
[1641079523619,1.59737098,177.79,177.72,8.4377]
[1641079524018,1.59737098,177.8,177.72,8.4377]
[1641079524520,1.59737098,177.8,177.73,8.33]
[1641079524721,1.59737098,177.8,177.76,8.4363]
[1641079525120,1.59737098,177.81,177.76,8.4363]
[1641079525517,1.59737098,177.81,177.77,5.30594934]
[1641079525716,1.59737098,177.81,177.77,13.74204934]
[1641079525918,1.59737098,177.83,177.77,13.74204934]
[1641079526619,1.85737098,177.83,177.77,13.74204934]
[1641079528218,1.85737098,177.83,177.75,8.437]
[1641079528419,1.85737098,177.83,177.74,1.2234]
[1641079529222,1.85737098,177.83,177.75,15.17035114]
[1641079529622,1.85737098,177.83,177.76,8.4368]
[1641079530726,3.76288304,177.83,177.75,15.17035114]
[1641079530922,2.16551206,177.83,177.75,15.17035114]
[1641079531523,3.76288304,177.83,177.75,15.17035114]
[1641079531724,10.29547098,177.83,177.75,15.17035114]
[1641079532126,1.59737098,177.82,177.75,15.17035114]
[1641079532524,1.85737098,177.82,177.75,15.17035114]
[1641079533126,10.29587098,177.82,177.75,15.17035114]
[1641079533525,0.26,177.82,177.75,15.17035114]
[1641079533929,157.5087,177.84,177.75,15.17035114]
[1641079534530,8.4379,177.83,177.75,23.60775114]
[1641079534931,8.6979,177.83,177.75,23.60775114]
[1641079535529,0.26,177.83,177.75,23.60775114]
[1641079535930,157.5087,177.84,177.75,23.60775114]
[1641079539053,163.49352716,177.84,177.75,23.60775114]
[1641079539257,171.93072716,177.84,177.75,15.17035114]
[1641079539856,165.9459,177.84,177.75,15.17035114]
[1641079540958,165.9459,177.84,177.75,23.60795114]
[1641079542167,167.2764,177.84,177.75,23.60795114]
[1641079545164,158.8392,177.84,177.75,23.60795114]
[1641079549676,158.5792,177.84,177.75,23.60795114]
[1641079550278,158.5792,177.84,177.75,23.86795114]
[1641079550977,80.1817,177.84,177.75,23.86795114]
[1641079551382,80.4417,177.84,177.75,23.86795114]
[1641079554583,78.8512,177.84,177.76,1.42669368]
[1641079554783,78.8512,177.84,177.8,8.4351]
[1641079554984,1.2475,177.86,177.8,8.4351]
[1641079555185,77.9785,177.89,177.8,8.4351]
[1641079555585,77.9785,177.89,177.81,2.60913673]
[1641079555784,79.1808,177.89,177.83,8.434]
[1641079555982,1.4623,177.89,177.83,8.434]
[1641079556383,1.2023,177.89,177.83,8.434]
[1641079558385,1.4623,177.89,177.83,8.434]
[1641079558786,2.82133992,177.89,177.83,8.434]
[1641079558987,2.82133992,177.89,177.81,2.60913673]
[1641079559589,2.82133992,177.89,177.8,1.2308]
[1641079560186,2.82133992,177.89,177.76,1.42669368]
[1641079560386,8.33,177.88,177.73,1.42669368]
[1641079560588,10.01669368,177.88,177.73,15.23306873]
[1641079560788,10.51669368,177.88,177.73,15.23306873]
[1641079561790,1.2647,177.87,177.73,15.23306873]
[1641079561987,8.33,177.86,177.73,15.23306873]
[1641079562189,18.60873464,177.85,177.73,15.23306873]
[1641079562389,19.10873464,177.85,177.73,15.23306873]
[1641079562588,19.36873464,177.85,177.73,15.23306873]
[1641079562789,8.4383,177.8,177.74,8.4383]
[1641079563089,8.6983,177.8,177.74,8.4383]
[1641079563688,8.6983,177.8,177.71,74.014]
[1641079564088,8.6983,177.8,177.71,82.4537]
[1641079564489,8.6983,177.8,177.67,80.0577]
[1641079564694,9.1983,177.8,177.67,14.58157925]
[1641079564891,9.1983,177.8,177.67,13.37357925]
[1641079565090,9.1983,177.8,177.67,21.81507925]
[1641079565290,8.4415,177.75,177.67,21.81507925]
[1641079565493,0.26,177.75,177.67,13.37357925]
[1641079566190,0.26,177.75,177.67,21.81497925]
[1641079566392,8.4399,177.78,177.67,21.81497925]
[1641079566595,8.6999,177.78,177.67,21.81497925]
[1641079569592,1.2769,177.77,177.67,21.81497925]
[1641079569795,8.4413,177.75,177.67,21.81497925]
[1641079569993,0.26,177.75,177.67,21.81497925]
[1641079570996,1.5369,177.77,177.67,21.81497925]
[1641079571593,8.4415,177.74,177.67,21.81497925]
[1641079571992,8.7015,177.74,177.67,21.81497925]
[1641079572396,9.2015,177.74,177.67,21.81497925]
[1641079573596,8.4409,177.76,177.67,21.81497925]
[1641079573797,1.59737098,177.79,177.67,31.83167293]
[1641079574398,1.326,177.82,177.67,31.83167293]
[1641079574596,1.326,177.82,177.68,1.309]
[1641079574798,9.7641,177.82,177.74,8.4376]
[1641079574999,10.0241,177.82,177.74,12.84350862]
[1641079575597,9.7641,177.82,177.74,12.84350862]
[1641079577000,2.17608877,177.81,177.71,1.2392]
[1641079577198,8.4387,177.8,177.72,8.33]
[1641079577599,0.26,177.8,177.72,8.33]
[1641079577997,1.586,177.82,177.72,8.33]
[1641079578400,1.586,177.82,177.67,28.13]
[1641079578600,18.75071725,177.81,177.68,14.37678504]
[1641079578999,19.51071725,177.81,177.68,14.37678504]
[1641079579200,1.50223226,177.8,177.68,14.37678504]
[1641079579401,8.4417,177.74,177.66,8.4418]
[1641079579600,8.7017,177.74,177.66,8.4418]
[1641079580399,8.7017,177.74,177.67,13.24394973]
[1641079580800,8.7017,177.74,177.67,21.68524973]
[1641079581500,0.26,177.74,177.67,21.68524973]
[1641079581901,8.7011,177.75,177.67,21.68524973]
[1641079583403,28.1338,177.82,177.67,30.27524973]
[1641079583603,0.26,177.82,177.67,30.27524973]
[1641079584308,21.5603789,177.82,177.67,30.27524973]
[1641079584509,8.4392,177.79,177.67,30.27524973]
[1641079584709,0.37523321,177.78,177.67,31.29794973]